bitfinex/quotes_SOLUSD_20241113
["timestamp","ask_amount","ask_price","bid_price","bid_amount"]
[1731474843199,23.776884,205.09,205.01,22.79149605]
[1731474843419,22.79149605,205.06,205.01,312.0]
[1731474844120,23.776884,205.05,205.01,312.0]
[1731474844305,22.79149605,205.04,204.96,2.4394]
[1731474844504,23.776884,205.05,204.97,22.79149605]
[1731474845008,23.776884,205.05,204.98,37.05986069]
[1731474845321,23.776884,205.06,204.98,37.05986069]
[1731474845629,4.8768,205.05,204.98,37.05986069]
[1731474845932,41.93666069,205.05,204.96,43.15856069]
[1731474846114,23.776884,205.04,204.96,6.0987]
[1731474846435,23.776884,205.02,204.94,37.05986069]
[1731474846808,23.776884,205.0,204.92,37.05986069]
[1731474847326,37.05986069,205.01,204.92,37.05986069]
[1731474847521,28.654884,205.0,204.92,37.05986069]
[1731474848321,37.05986069,204.99,204.9,39.49996069]
[1731474849220,41.93816069,204.99,204.9,37.05986069]
[1731474849416,23.776884,204.98,204.9,37.05986069]
[1731474849633,23.776884,204.98,204.88,43.16096069]
[1731474849634,37.05986069,204.97,204.88,43.16096069]
[1731474849805,37.05986069,204.93,204.85,0.490469]
[1731474850000,23.776884,204.92,204.85,0.490469]
[1731474850314,37.05986069,204.88,204.85,0.490469]
[1731474850712,60.83674469,204.86,204.85,0.490469]
[1731474851621,41.94116069,204.86,204.85,0.490469]
[1731474851919,65.71804469,204.86,204.85,0.490469]
[1731474854036,60.83674469,204.86,204.85,0.490469]
[1731474855532,23.776884,204.86,204.85,0.490469]
[1731474856036,60.83674469,204.86,204.85,0.490469]
[1731474856430,222.53674469,204.86,204.85,0.490469]
[1731474856739,37.05986069,204.76,204.7,6.1063]
[1731474857315,37.05986069,204.76,204.68,7.968]
[1731474857523,37.05986069,204.76,204.67,39.50266069]
[1731474857927,41.94366069,204.76,204.67,39.50266069]
[1731474858530,41.94366069,204.76,204.67,45.60996069]
[1731474859116,41.94326069,204.78,204.69,37.05986069]
[1731474859321,23.776884,204.79,204.71,37.05986069]
[1731474859664,37.05986069,204.78,204.71,312.0]
[1731474860344,37.05986069,204.8,204.71,45.60836069]
[1731474861049,37.05986069,204.78,204.71,45.60836069]
[1731474861225,37.05986069,204.8,204.71,45.60836069]
[1731474861537,41.94276069,204.8,204.71,45.60836069]
[1731474862046,37.05986069,204.84,204.75,37.05986069]
[1731474862537,37.05986069,204.86,204.79,37.05986069]
[1731474862840,37.05986069,204.88,204.79,37.05986069]
[1731474863046,37.05986069,204.92,204.83,37.05986069]
[1731474863224,37.05986069,204.96,204.87,349.05986069]
[1731474863428,37.05986069,204.96,204.88,8.5415]
[1731474863733,41.93896069,204.96,204.88,8.5415]
[1731474864046,37.05986069,205.0,204.91,37.05986069]
[1731474864223,41.93756069,205.02,204.93,37.05986069]
[1731474864423,37.05986069,205.0,204.91,37.05986069]
[1731474864722,41.93756069,205.02,204.93,37.05986069]
[1731474865135,37.05986069,205.02,204.93,37.05986069]
[1731474865923,19.166,205.09,204.92,8.5398]
[1731474865924,37.05986069,205.06,204.97,37.05986069]
[1731474866119,37.05986069,205.04,204.95,37.05986069]
[1731474866728,37.05986069,205.04,204.98,312.0]
[1731474867332,37.05986069,205.02,204.98,312.0]
[1731474867951,4.8773,205.03,204.98,312.0]
[1731474868240,37.05986069,205.06,204.98,318.0981]
[1731474868447,8.2473,205.15,204.98,318.0981]
[1731474868448,37.05986069,205.08,204.99,37.05986069]
[1731474868645,37.05986069,205.12,205.03,37.05986069]
[1731474869427,0.2,205.19,204.95,0.1]
[1731474869428,37.05986069,205.08,204.99,65.59676069]
[1731474869632,37.05986069,205.08,204.99,45.59676069]
[1731474869843,37.05986069,205.04,204.99,6.0978]
[1731474870233,37.05986069,205.04,204.9,44.78086069]
[1731474870234,37.05986069,205.02,204.94,2.4396]
[1731474870847,37.05986069,205.0,204.94,2.4396]
[1731474871426,57.50946069,205.1,204.94,2.4396]
[1731474871427,37.05986069,205.04,204.95,349.05986069]
[1731474872053,37.05986069,205.04,204.95,37.05986069]
[1731474872430,37.05986069,205.04,204.97,37.05986069]
[1731474872650,37.05986069,205.06,204.97,37.05986069]
[1731474873429,37.05986069,205.06,204.98,2.4392]
[1731474873648,41.93656069,205.06,204.98,2.4392]
[1731474873836,37.05986069,205.04,204.96,2.4394]
[1731474874538,37.05986069,205.0,204.9,7.721]
[1731474874845,37.05986069,204.98,204.89,8.541]
[1731474875156,37.05986069,205.02,204.94,37.05986069]
[1731474875356,37.05986069,205.04,204.96,37.05986069]
[1731474875655,37.05986069,205.04,204.97,2.4393]
[1731474876153,37.05986069,205.04,204.95,8.5383]
[1731474876154,23.776884,205.03,204.95,8.5383]
[1731474876341,37.05986069,205.02,204.95,8.5383]
[1731474876656,37.05986069,205.04,204.95,8.5383]
[1731474876856,22.81044455,205.04,204.95,31.34874455]
[1731474877453,22.81044455,205.02,204.95,28.90924455]
[1731474877752,22.81044455,205.02,204.95,6.0988]
[1731474877963,22.81044455,205.04,204.97,22.81044455]
[1731474878158,22.81044455,205.04,204.95,28.90924455]
[1731474878340,22.81044455,205.04,204.91,0.1]
[1731474878341,22.81044455,205.0,204.93,2.4397]
[1731474878544,22.81044455,205.0,204.95,312.0]
[1731474878844,22.81044455,205.02,204.95,334.81044455]
[1731474879044,28.653784,205.05,204.95,22.81044455]
[1731474879045,22.81044455,205.04,204.95,22.81044455]
[1731474879548,22.81044455,205.02,204.95,22.81044455]
[1731474879735,22.81044455,205.02,204.95,25.24994455]
[1731474879935,22.81044455,205.02,204.95,31.34894455]
[1731474880439,22.81044455,205.02,204.95,8.5385]
[1731474881952,4.8774,205.03,204.95,8.5385]
[1731474882148,43.26299225,205.1,204.95,8.5385]
[1731474882149,22.81339225,205.1,205.0,312.0]
[1731474882333,22.81339225,205.12,205.0,312.0]
[1731474882532,22.81339225,205.12,205.01,20.0]
[1731474883161,22.81339225,205.14,205.0,23.976884]
[1731474883337,19.2657,205.24,204.98,8.4397]
[1731474883338,22.81339225,205.16,205.03,20.1]
[1731474883539,22.81339225,205.14,205.05,20.0]
[1731474883853,22.81339225,205.16,205.05,20.0]
[1731474884061,22.81339225,205.14,205.05,20.0]
[1731474884538,22.81339225,205.16,205.05,20.0]
[1731474884934,22.81339225,205.18,205.07,20.0]
[1731474885153,22.81339225,205.26,205.11,43.876884]
[1731474885661,22.81339225,205.24,205.18,312.0]
[1731474886042,22.81339225,205.22,205.18,312.0]
[1731474886244,22.81339225,205.2,205.09,7.698]
[1731474886447,22.81339225,205.18,205.09,10.1359]
[1731474886755,22.81339225,205.18,205.09,16.2307]
[1731474887545,4.874,205.17,205.09,16.2307]
[1731474888147,22.81339225,205.14,205.04,6.0961]
[1731474888341,22.81339225,205.12,205.04,6.0961]
[1731474888937,4.874,205.17,205.04,6.0961]
[1731474889144,22.81339225,205.18,205.1,312.0]
[1731474889742,27.68719225,205.18,205.1,312.0]
[1731474889955,27.68719225,205.18,205.09,2.4379]
[1731474891360,22.81339225,205.16,205.09,2.4379]
[1731474891557,22.81339225,205.16,205.08,6.095]
[1731474891743,22.81339225,205.18,205.08,6.095]
[1731474892140,22.81339225,205.16,205.08,6.095]
[1731474892847,27.68719225,205.18,205.12,312.0]
[1731474893742,22.81339225,205.18,205.12,314.4375]
[1731474893946,22.81339225,205.22,205.12,8.5314]
[1731474894143,22.81339225,205.22,205.08,0.1]
[1731474894144,22.81339225,205.13,205.05,8.5344]
[1731474894354,22.81339225,205.13,205.06,20.0]
[1731474895147,22.81339225,205.15,205.06,20.0]
[1731474895354,22.81339225,205.19,205.07,8.5335]
[1731474895649,22.81339225,205.19,205.08,20.0]
[1731474896471,4.8736,205.19,205.07,8.5335]
[1731474896642,22.81339225,205.13,205.07,8.5335]
[1731474896842,22.81339225,205.11,205.03,16.8013]
[1731474897055,22.81339225,205.09,205.03,16.8013]
[1731474899459,22.81339225,205.11,205.03,16.8013]
[1731474899651,22.81339225,205.13,205.03,16.8013]
[1731474899855,22.81339225,205.11,205.03,16.8013]
[1731474900043,22.81339225,205.11,205.06,312.0]
[1731474900245,17.059,205.17,205.06,312.0]
[1731474900246,22.81339225,205.09,205.06,312.0]
[1731474900551,22.81339225,205.11,205.06,312.0]
[1731474900745,22.81339225,205.09,205.01,2.4388]
[1731474900949,22.81339225,205.09,204.98,6.0978]
[1731474900950,22.81339225,205.09,204.98,8.537]
[1731474901141,22.81339225,205.11,204.98,8.637]
[1731474901467,22.81339225,205.11,204.99,23.876884]
[1731474901666,22.81339225,205.13,205.0,0.1]
[1731474901976,22.81339225,205.07,204.98,8.537]
[1731474902267,22.81339225,205.07,204.79,24.67816981]
[1731474902268,22.81339225,204.99,204.91,7.861]
[1731474902467,22.91339225,205.1,204.87,32.8166]
[1731474902468,22.81339225,204.97,204.89,8.5409]
[1731474902670,22.81339225,204.99,204.89,8.5409]
[1731474903357,22.81339225,204.95,204.84,8.543]
[1731474903562,22.81339225,204.95,204.84,6.1021]
[1731474903759,22.81339225,204.99,204.92,312.0]
[1731474904271,27.69169225,204.99,204.85,0.1]
[1731474904562,22.81339225,204.95,204.84,6.1021]
[1731474904771,22.81339225,204.93,204.84,6.1021]
[1731474904963,22.81339225,204.91,204.84,6.1021]
[1731474905765,161.6,205.06,204.86,19.4258]
[1731474905949,4.8732,205.2,204.97,0.1]
[1731474906268,22.81339225,205.16,205.03,0.1]
[1731474906453,22.81339225,205.12,205.01,20.0]
[1731474906853,22.81339225,205.1,205.0,19.4258]
[1731474907058,0.1,205.18,204.95,0.2]
[1731474907059,22.81339225,205.08,204.96,0.1]
[1731474907259,22.81339225,205.08,205.04,312.0]
[1731474907554,27.69009225,205.06,204.95,8.5386]
[1731474907967,22.81339225,205.04,204.95,8.5386]
[1731474908465,22.81339225,205.08,204.95,8.6386]
[1731474908681,22.81339225,205.08,204.96,20.0]
[1731474909257,22.81339225,205.1,204.98,0.1]
[1731474909458,22.81339225,205.12,205.0,0.1]
[1731474909652,22.81339225,205.14,205.02,20.0]
[1731474909856,22.81339225,205.2,205.04,20.0]
[1731474910065,22.81339225,205.2,205.06,20.0]
[1731474910267,22.81339225,205.2,205.08,20.0]
[1731474910568,22.81339225,205.2,205.13,312.0]
[1731474911055,4.8731,205.21,205.13,312.0]
[1731474911255,22.81339225,205.24,205.09,23.976884]
[1731474911470,22.81339225,205.24,205.1,20.0]
[1731474911769,42.30599725,205.26,205.14,20.0]
[1731474911968,22.81339225,205.22,205.11,8.5319]
[1731474912202,22.81339225,205.22,205.12,20.0]
[1731474912567,24.364705,205.26,205.12,20.0]
[1731474912568,42.30599725,205.26,205.12,20.0]
[1731474912764,36.99164594,205.25,205.12,20.1]
[1731474912973,36.99164594,205.25,205.14,20.0]
[1731474913163,36.99164594,205.23,205.11,8.5319]
[1731474913365,36.99164594,205.21,205.11,8.5319]
[1731474913562,36.99164594,205.21,205.12,20.0]
[1731474913772,36.99164594,205.21,205.13,8.531]
[1731474914276,56.48220594,205.23,205.15,312.0]
[1731474914454,36.99164594,205.23,205.15,312.0]
[1731474914892,36.99164594,205.23,205.13,8.531]
[1731474915066,36.99164594,205.27,205.14,20.0]
[1731474915258,36.99164594,205.31,205.16,20.1]
[1731474915461,12.2891,205.3,205.16,20.1]
[1731474915780,36.99164594,205.29,205.18,20.0]
[1731474915969,12.2891,205.3,205.18,20.0]
[1731474916279,36.99164594,205.31,205.2,20.0]
[1731474916579,36.99164594,205.29,205.2,20.0]
[1731474917069,36.99164594,205.29,205.19,8.0331]
[1731474917783,36.99164594,205.29,205.25,312.0]
[1731474918375,36.99164594,205.27,205.25,312.0]
[1731474918557,23.776884,205.26,205.12,7.7671]
[1731474918761,36.99164594,205.19,205.12,7.7671]
[1731474918955,23.776884,205.28,205.12,10.2046]
[1731474919190,60.76852994,205.28,205.12,10.3046]
[1731474919474,0.590469,205.37,205.12,10.3046]
[1731474919475,23.776884,205.3,205.13,0.22549]
[1731474919710,4.8707,205.31,205.16,0.1]
[1731474919711,23.776884,205.31,205.16,0.1]
[1731474920257,61.34387894,205.32,205.16,0.12549]
[1731474920454,36.99164594,205.34,205.18,0.12549]
[1731474920679,0.490469,205.37,205.24,20.0]
[1731474920884,5.359769,205.37,205.24,20.0]
[1731474921473,0.490469,205.37,205.32,312.0]
[1731474921973,0.490469,205.37,205.33,20.0]
[1731474922173,0.490469,205.37,205.35,20.0]
[1731474922375,0.490469,205.37,205.34,7.698]
[1731474923379,0.490469,205.37,205.35,20.0]
[1731474923572,0.490469,205.37,205.36,2.4347]
[1731474924391,0.490469,205.37,205.35,20.0]
[1731474924569,0.490469,205.37,205.35,22.4348]
[1731474924879,0.490469,205.37,205.35,28.5219]
[1731474925085,0.490469,205.37,205.36,312.0]
[1731474926757,0.490469,205.37,205.34,7.698]
[1731474926758,0.490469,205.37,205.34,44.62557085]
[1731474926964,0.490469,205.37,205.34,47.06047085]
[1731474927208,0.490469,205.37,205.34,50.71297085]
[1731474928060,0.490469,205.37,205.28,0.1]
[1731474928061,0.490469,205.37,205.32,39.36267085]
[1731474928679,0.490469,205.37,205.3,36.92757085]
[1731474928877,0.490469,205.37,205.29,6.0888]
[1731474928878,36.92757085,205.35,205.29,6.0888]
[1731474929179,0.490469,205.37,205.3,36.92757085]
[1731474929564,42.28733985,205.37,205.29,6.0888]
[1731474929759,42.28733985,205.37,205.29,318.0888]
[1731474929984,42.28733985,205.37,205.29,320.5243]
[1731474930173,0.490469,205.37,205.32,36.92757085]
[1731474930373,0.490469,205.37,205.34,36.92757085]
[1731474931883,0.490469,205.37,205.35,20.0]
[1731474932197,8.1912,205.53,205.37,20.0]
[1731474932198,36.92757085,205.53,205.37,20.0]
[1731474932488,4.8653,205.54,205.37,20.0]
[1731474932489,4.8653,205.54,205.44,36.92757085]
[1731474932691,36.92757085,205.53,205.44,36.92757085]
[1731474933171,4.8657,205.52,205.46,312.0]
[1731474933769,4.8653,205.54,205.46,348.92757085]
[1731474933968,37.41803985,205.57,205.48,36.92757085]
[1731474934485,36.92757085,205.55,205.46,36.92757085]
[1731474934988,37.41803985,205.57,205.48,36.92757085]
[1731474935369,42.28263985,205.57,205.48,36.92757085]
[1731474935602,37.41803985,205.57,205.48,36.92757085]
[1731474935776,42.28263985,205.57,205.48,36.92757085]
[1731474936091,36.92757085,205.55,205.47,8.517]
[1731474936869,41.79267085,205.55,205.51,312.0]
[1731474937266,42.28263985,205.57,205.51,312.0]
[1731474937577,42.28263985,205.57,205.47,8.517]
[1731474937578,36.92757085,205.55,205.47,8.517]
[1731474937776,36.92757085,205.55,205.44,36.92757085]
[1731474937984,36.92757085,205.53,205.43,2.4339]
[1731474938167,36.92757085,205.53,205.44,36.92757085]
[1731474938778,36.92757085,205.49,205.38,6.0861]
[1731474938996,23.776884,205.52,205.38,6.0861]
[1731474938997,36.92757085,205.43,205.38,6.0861]
[1731474939290,36.92757085,205.47,205.38,6.0861]
[1731474939490,36.92757085,205.49,205.41,36.92757085]
[1731474939701,36.92757085,205.51,205.41,36.92757085]
[1731474939889,36.92757085,205.51,205.43,36.92757085]
[1731474940100,23.776884,205.5,205.41,36.92757085]
[1731474940271,36.92757085,205.49,205.41,36.92757085]
[1731474941091,36.92757085,205.49,205.41,43.01287085]
[1731474941298,36.92757085,205.49,205.41,45.44697085]
[1731474941479,23.776884,205.5,205.41,45.44697085]
[1731474941685,36.92757085,205.49,205.41,45.44697085]
[1731474942370,36.92757085,205.51,205.41,45.44697085]
[1731474942574,41.79357085,205.51,205.41,45.44697085]
[1731474942786,41.79357085,205.51,205.42,20.0]
[1731474943091,36.92757085,205.53,205.45,36.92757085]
[1731474943392,41.79267085,205.55,205.45,36.92757085]
[1731474943597,36.92757085,205.53,205.49,312.0]
[1731474944471,36.92757085,205.55,205.49,312.0]
[1731474944887,0.490469,205.57,205.51,36.92757085]
[1731474945087,0.490469,205.57,205.55,36.92757085]
[1731474945398,0.490469,205.57,205.56,43.776884]
[1731474945598,4.8608,205.73,205.57,23.876884]
[1731474945776,0.490469,205.78,205.57,23.876884]
[1731474945777,36.92757085,205.74,205.65,20.0]
[1731474946199,36.92757085,205.74,205.66,36.92757085]
[1731474946376,4.8603,205.75,205.67,2.431]
[1731474947196,4.8603,205.75,205.65,26.0781]
[1731474947197,36.92757085,205.74,205.65,28.5093]
[1731474947373,36.92757085,205.74,205.65,26.0781]
[1731474947578,36.92757085,205.72,205.64,39.35887085]
[1731474947792,36.92757085,205.74,205.71,312.0]
[1731474947994,36.92757085,205.76,205.71,312.0]
[1731474948179,41.78767085,205.76,205.71,312.0]
[1731474948901,36.92757085,205.74,205.71,312.0]
[1731474949202,36.92757085,205.72,205.64,6.0785]
[1731474949495,23.776884,205.75,205.62,7.8294]
[1731474949496,36.92757085,205.69,205.62,7.8294]
[1731474950498,41.78937085,205.69,205.62,7.8294]
[1731474951279,36.92757085,205.69,205.62,10.261]
[1731474951486,36.92757085,205.67,205.59,6.0799]
[1731474951683,4.8619,205.68,205.56,8.161]
[1731474951684,36.92757085,205.65,205.56,45.08857085]
[1731474951899,36.92757085,205.65,205.56,47.52087085]
[1731474952107,36.92757085,205.65,205.56,357.08857085]
[1731474952280,4.8619,205.68,205.56,357.08857085]
[1731474952281,36.92757085,205.63,205.56,312.0]
[1731474952597,41.79067085,205.63,205.56,312.0]
[1731474952783,41.79027085,205.65,205.56,45.44077085]
[1731474953796,36.92757085,205.63,205.56,6.0809]
[1731474954601,41.79027085,205.65,205.56,45.44077085]
[1731474955095,36.92757085,205.63,205.56,6.0809]
[1731474955476,36.92757085,205.61,205.52,36.92757085]
[1731474955690,36.92757085,205.61,205.51,8.515]
[1731474955893,36.92757085,205.61,205.54,312.0]
[1731474956592,4.8638,205.6,205.54,312.0]
[1731474956985,36.92757085,205.63,205.54,45.44157085]
[1731474957300,36.92757085,205.65,205.56,36.92757085]
[1731474958496,4.8628,205.64,205.56,39.35987085]
[1731474958894,4.8628,205.64,205.56,45.44077085]
[1731474960109,36.92757085,205.63,205.58,312.0]
[1731474960281,36.92757085,205.61,205.52,36.92757085]
[1731474960481,4.8628,205.64,205.48,39.36077085]
[1731474960482,36.92757085,205.57,205.48,39.36077085]
[1731474960782,22.70784398,205.51,205.45,7.6011]
[1731474960984,22.70784398,205.51,205.44,2.4337]
[1731474961285,22.70784398,205.51,205.42,22.70784398]
[1731474961484,22.70784398,205.43,205.34,8.2086]
[1731474961705,0.1,205.49,205.34,8.2086]
[1731474961706,22.70784398,205.41,205.34,8.2086]
[1731474961882,22.70784398,205.37,205.31,6.0881]
[1731474962086,22.70784398,205.37,205.28,30.91644398]
[1731474962289,22.70784398,205.35,205.26,28.79754398]
[1731474962593,22.70784398,205.35,205.26,22.70784398]
[1731474962803,36.95397375,205.36,205.27,36.95397375]
[1731474963192,36.95397375,205.42,205.33,36.95397375]
[1731474963494,0.8,205.44,205.41,36.95397375]
[1731474963790,0.8,205.44,205.43,36.95397375]
[1731474964387,0.8,205.44,205.43,59.38787375]
[1731474965199,36.95397375,205.58,205.44,20.0]
[1731474965505,36.95397375,205.58,205.49,36.95397375]
[1731474965802,36.95397375,205.64,205.55,36.95397375]
[1731474966506,0.83998998,205.68,205.49,7.05058078]
[1731474966507,36.95397375,205.66,205.57,36.95397375]
[1731474966805,37.79396373,205.68,205.65,312.0]
[1731474967191,37.79396373,205.68,205.59,36.95397375]
[1731474968395,37.79396373,205.68,205.59,39.38587375]
[1731474968597,42.65596373,205.68,205.59,39.38587375]
[1731474968912,0.83998998,205.68,205.61,36.95397375]
[1731474969996,0.83998998,205.68,205.61,39.38567375]
[1731474970296,0.83998998,205.68,205.67,312.0]
[1731474971795,42.65586373,205.68,205.67,312.0]
[1731474972193,42.65586373,205.68,205.59,39.38587375]
[1731474972514,36.95397375,205.66,205.57,39.38617375]
[1731474972895,36.95397375,205.66,205.56,6.0809]
[1731474972896,36.95397375,205.6,205.52,7.6611]
[1731474973092,36.95397375,205.6,205.52,10.0938]
[1731474973606,36.95397375,205.6,205.51,36.95397375]
[1731474973788,36.95397375,205.64,205.54,36.95397375]
[1731474973988,36.95397375,205.62,205.53,2.4326]
[1731474974794,41.81627375,205.66,205.56,36.95397375]
[1731474975015,36.95397375,205.62,205.54,36.95397375]
[1731474975192,36.95397375,205.62,205.61,312.0]
[1731474975604,36.95397375,205.66,205.61,312.0]
[1731474975790,36.95397375,205.66,205.57,36.95397375]
[1731474976111,36.95397375,205.64,205.56,2.4322]
[1731474976290,36.95397375,205.66,205.57,36.95397375]
[1731474976491,0.83998998,205.68,205.61,36.95397375]
[1731474976690,37.79396373,205.68,205.6,36.95397375]
[1731474977097,0.83998998,205.68,205.62,36.95397375]
[1731474977299,0.83998998,205.68,205.64,36.95397375]
[1731474978090,0.83998998,205.68,205.64,39.38527375]
[1731474978411,36.95397375,205.76,205.66,36.95397375]
[1731474978906,36.95397375,205.76,205.74,312.0]
[1731474979106,41.81407375,205.76,205.74,312.0]
[1731474979596,23.776884,205.75,205.74,312.0]
[1731474979998,23.876884,205.73,205.59,6.0799]
[1731474980312,36.95397375,205.66,205.59,6.0799]
[1731474980492,36.95397375,205.6,205.53,7.5743]
[1731474980697,36.95397375,205.6,205.51,2.4329]
[1731474980997,36.95397375,205.56,205.47,10.0076]
[1731474981194,0.8,205.51,205.4,7.5743]
[1731474981396,36.95397375,205.48,205.4,44.52827375]
[1731474981614,36.95397375,205.48,205.4,39.38817375]
[1731474981806,0.8,205.51,205.46,36.95397375]
[1731474982006,0.8,205.51,205.46,39.38747375]
[1731474982205,5.666,205.51,205.44,43.03827375]
[1731474982387,0.8,205.51,205.42,36.95397375]
[1731474983007,36.95397375,205.5,205.4,36.95397375]
[1731474983208,36.95397375,205.48,205.4,36.95397375]
[1731474983394,36.95397375,205.48,205.38,36.95397375]
[1731474983710,36.95397375,205.48,205.4,36.95397375]
[1731474984095,36.95397375,205.48,205.4,39.38817375]
[1731474984295,36.95397375,205.48,205.34,43.04137375]
[1731474984296,36.95397375,205.44,205.34,43.04137375]
[1731474984494,36.95397375,205.4,205.34,6.0874]
[1731474984813,36.95397375,205.42,205.34,36.95397375]
[1731474985112,36.95397375,205.44,205.36,36.95397375]
[1731474985317,36.95397375,205.42,205.31,8.5235]
[1731474985613,36.95397375,205.42,205.34,36.95397375]
[1731474985907,36.95397375,205.42,205.41,312.0]
[1731474986297,36.95397375,205.44,205.41,312.0]
[1731474986495,36.95397375,205.42,205.41,312.0]
[1731474987915,23.776884,205.41,205.3,6.0886]
[1731474988098,36.95397375,205.38,205.3,43.04257375]
[1731474988596,0.1,205.47,205.32,36.95397375]
[1731474988597,36.95397375,205.4,205.32,36.95397375]
[1731474988803,36.95397375,205.42,205.32,36.95397375]
[1731474989898,36.95397375,205.48,205.39,36.95397375]
[1731474990097,36.95397375,205.48,205.41,36.95397375]
[1731474990314,36.95397375,205.48,205.39,36.95397375]
[1731474990813,36.95397375,205.52,205.43,36.95397375]
[1731474991113,36.95397375,205.52,205.51,312.0]
[1731474992499,4.8659,205.51,205.43,6.0847]
[1731474992712,36.95397375,205.48,205.39,36.95397375]
[1731474993199,36.95397375,205.44,205.37,6.0863]
[1731474993410,36.95397375,205.46,205.39,36.95397375]
[1731474993612,36.95397375,205.48,205.39,36.95397375]
[1731474994750,36.95397375,205.51,205.42,36.95397375]
[1731474995619,4.8647,205.56,205.34,19.23859745]
[1731474995620,36.95397375,205.45,205.36,36.95397375]
[1731474995795,36.95397375,205.43,205.35,6.087]
[1731474996122,0.25398422,205.42,205.35,6.087]
[1731474996796,36.95397375,205.39,205.32,2.4351]
[1731474996996,36.95397375,205.37,205.3,8.5237]
[1731474997210,36.95397375,205.41,205.32,36.95397375]
[1731474997891,0.25398422,205.42,205.36,36.95397375]
[1731474998095,0.25398422,205.42,205.38,36.95397375]
[1731474998317,0.25398422,205.42,205.4,36.95397375]
[1731474998498,0.25398422,205.42,205.4,39.38807375]
[1731474998692,0.25398422,205.42,205.41,312.0]
[1731474999920,0.25398422,205.42,205.41,348.95397375]
[1731475000219,0.25398422,205.42,205.41,368.95397375]
[1731475000423,0.25398422,205.42,205.41,332.1]
[1731475000721,0.25398422,205.42,205.41,312.0]
[1731475001619,36.95397375,205.47,205.41,312.0]
[1731475001804,36.95397375,205.47,205.41,2.434]
[1731475002304,36.95397375,205.51,205.42,36.95397375]
[1731475002605,36.95397375,205.59,205.5,36.95397375]
[1731475002819,36.95397375,205.57,205.48,36.95397375]
[1731475003000,36.95397375,205.51,205.47,6.0836]
[1731475003319,36.95397375,205.51,205.44,36.95397375]
[1731475003620,36.95397375,205.49,205.43,6.0847]
[1731475004122,36.95397375,205.49,205.43,8.5186]
[1731475004599,36.95397375,205.49,205.43,6.0847]
[1731475004801,36.95397375,205.49,205.45,312.0]
[1731475005013,36.95397375,205.51,205.45,312.0]
[1731475005214,36.95397375,205.57,205.48,36.95397375]
[1731475006315,36.95397375,205.59,205.5,36.95397375]
[1731475006821,36.95397375,205.57,205.49,2.4331]
[1731475007114,36.95397375,205.55,205.49,2.4331]
[1731475007325,36.95397375,205.57,205.49,2.4331]
[1731475008209,36.95397375,205.57,205.54,312.0]
[1731475010202,36.95397375,205.57,205.49,6.083]
[1731475010203,36.95397375,205.55,205.49,6.083]
[1731475010402,36.95397375,205.55,205.49,8.5162]
[1731475012023,41.81907375,205.55,205.49,6.083]
[1731475012326,36.95397375,205.55,205.49,8.5162]
[1731475013204,36.95397375,205.55,205.5,312.0]
[1731475013711,36.95397375,205.55,205.42,7.0628]
[1731475013712,36.95397375,205.51,205.43,2.4338]
[1731475014020,36.95397375,205.67,205.5,73.9079475]
[1731475014322,36.95397375,205.69,205.6,36.95397375]
[1731475014699,36.95397375,205.69,205.58,36.95397375]
[1731475015119,36.95397375,205.69,205.6,36.95397375]
[1731475015628,0.1,205.74,205.56,7.2162]
[1731475015629,36.95397375,205.65,205.57,2.9187]
[1731475015931,36.95397375,205.61,205.52,59.87337375]
[1731475016226,36.95397375,205.63,205.54,44.25147375]
[1731475016400,36.95397375,205.69,205.6,36.95397375]
[1731475017126,36.95397375,205.71,205.6,36.95397375]
[1731475017311,36.95397375,205.75,205.66,36.95397375]
[1731475017709,36.95397375,205.75,205.69,2.917]
[1731475017903,36.95397375,205.75,205.68,36.95397375]
[1731475018111,41.81437375,205.75,205.68,36.95397375]
[1731475018416,36.95397375,205.75,205.68,36.95397375]
[1731475018608,36.95397375,205.75,205.68,39.87097375]
[1731475019220,36.95397375,205.72,205.64,7.0156]
[1731475019518,36.95397375,205.7,205.64,9.9332]
[1731475019727,36.95397375,205.72,205.64,9.9332]
[1731475019926,36.95397375,205.7,205.62,10.2128]
[1731475020111,36.95397375,205.68,205.59,36.95397375]
[1731475020318,36.95397375,205.66,205.58,9.9341]